[Event "1000GM NY Winter GM-B 2024"]
[Site "New York"]
[Date "2024.01.16"]
[Round "9.4"]
[White "Graif, William"]
[Black "Lee, Alice"]
[Result "1/2-1/2"]
[ECO "C42"]
[WhiteElo "2302"]
[BlackElo "2379"]
[Annotator "TA"]
[PlyCount "133"]
[EventDate "2024.01.10"]
[EventType "tourn"]
[EventCountry "USA"]
[SourceTitle "playchess.com"]
[Source "ChessBase"]
[SourceQuality "1"]
[TimeControl "5400+30"]

{[%evp 13,133,8,22,20,14,18,10,6,10,14,11,12,10,-62,-59,-61,-67,-51,-51,-82,-76,-79,-83,-81,-81,-81,-81,-77,-77,-77,-20,-66,0,-78,-70,-91,-87,-87,-87,-88,-87,-87,-88,-90,-59,-64,-64,-64,-43,-45,-54,-95,0,-51,-49,-54,-40,-40,-25,-144,-141,-117,-129,-144,-85,-126,-106,-116,-109,-147,-127,-137,-86,-85,-88,-76,-32,-41,-52,-115,-104,-115,0,-81,-53,-53,-53,-77,-53,-83,-76,-95,-91,-665,-721,-683,-729,-659,-693,-680,-587,-499,-497,-497,-441,-140,-8,-9,-9,-9,-9,-9,-11,-72,-72,-72,-8,-8,-8,-8,-8,0]} 1. e4 {[%emt 0:00:51]} e5 {[%emt 0:01:15]} 2. Nf3 {[%emt 0:00:13]} Nf6 {[%emt 0:00:04]} 3. Nxe5 {[%emt 0:00:54]} d6 {[%emt 0:00:06]} 4. Nf3 {[%emt 0:00:06]} Nxe4 {[%emt 0:00:06]} 5. Nc3 {[%emt 0:00:33]} Nxc3 {[%emt 0:00:04]} 6. dxc3 {[%emt 0:00:05]} Be7 {[%emt 0:00:05]} 7. Be3 {[%emt 0:00:08]} O-O {[%emt 0:00:04]} 8. Qd2 {[%emt 0:00:09] C42: Petroff Defence: 3 Nxe5 and unusual White 3rd moves.} Nd7 {[%emt 0:00:12]} 9. O-O-O {[%emt 0:00:11]} Nf6 {[%emt 0:00:03]} 10. Bd3 {[%emt 0:00:31]} Re8 {[%emt 0:00:05]} 11. Rhe1 {[%emt 0:04:48]} Bg4 {[%emt 0:00:09] 11...Bd7 is not played anymore.} 12. Bg5 {[%emt 0:03:12]} Qd7 {[%emt 0:00:14] [#] 12...Nh5 is the modern continuation.} 13. Qf4 $146 {[%emt 0:02:47]} ({White should try} 13. Kb1 $11) ({Predecessor:} 13. h3 Bf5 14. g4 Bxd3 15. Qxd3 h6 16. Be3 Qa4 17. g5 hxg5 18. Bxg5 Bf8 19. Kb1 {½-½ Suleymanli,A (2588)-Aditya,M (2572) EU-Cup 38th Durres 2023 (2.1)}) 13... Nh5 $15 {[%emt 0:02:25]} 14. Qd2 {[%emt 0:07:21]} Bxg5 {[%emt 0:03:27]} 15. Qxg5 {[%emt 0:06:02]} h6 {[%emt 0:01:16]} 16. Qd2 {[%emt 0:05:01]} Qa4 {[%emt 0:09:38]} 17. a3 {[%emt 0:09:21]} Bxf3 {[%emt 0:07:36]} 18. gxf3 {[%emt 0:00:12]} Qf4 {[%emt 0:00:05]} 19. Qxf4 {[%emt 0:11:26]} Nxf4 {[%emt 0:00:12]} 20. Re4 {[%emt 0:00:30]} Nh3 {[%emt 0:01:23]} 21. Rf1 {[%emt 0:11:12]} Ng5 {[%emt 0:07:47]} (21... g5 $17) 22. Re3 {[%emt 0:01:10]} (22. Rb4 $11) 22... Nh3 {[%emt 0:06:44]} (22... Ne6 $15) 23. Be4 {[%emt 0:09:42]} (23. Re4 $1 $11 {remains equal.}) 23... Rab8 {[%emt 0:01:44]} 24. Bf5 {[%emt 0:07:47]} Nf4 {[%emt 0:00:20]} 25. Re4 {[%emt 0:01:25]} Rxe4 {[%emt 0:01:08]} 26. fxe4 $17 {[%emt 0:05:51][%mdl 4096] Endgame KRB-KRN} Re8 {[%emt 0:02:55]} 27. f3 {[%emt 0:03:20]} g6 {[%emt 0:16:15]} 28. Bd7 {[%emt 0:00:12]} Re7 {[%emt 0:00:23]} 29. Bc8 {[%emt 0:02:41]} c6 {[%emt 0:03:04]} 30. Kd2 $1 {[%emt 0:00:12]} Kg7 {[%emt 0:02:14]} 31. Ke3 {[%emt 0:01:09]} Nd5+ {[%emt 0:00:02]} 32. Kd4 {[%emt 0:02:19]} Nf4 {[%emt 0:00:12]} 33. Ke3 $1 {[%emt 0:00:35]} g5 {[%emt 0:00:01]} 34. c4 {[%emt 0:01:48]} Kf6 {[%emt 0:00:37]} 35. Kd4 {[%emt 0:00:52]} d5 {[%emt 0:01:51][%cal Oc6c5]} 36. cxd5 {[%emt 0:00:28]} ({Much worse is} 36. exd5 cxd5 37. cxd5 Rc7 38. Bxb7 (38. Bg4 $2 Rxc2 39. h4 gxh4 $19) 38... Rxb7 $19) (36. c5 $1 $11) 36... cxd5 {[%emt 0:00:04] ...Rc7 would be deadly.} 37. Bf5 {[%emt 0:01:13]} Rc7 {[%emt 0:00:31] Threatens to win with ...Rc4+.} 38. c3 {[%emt 0:00:37]} Rc4+ {[%emt 0:02:21]} 39. Ke3 {[%emt 0:00:01] [#]} d4+ $1 {[%emt 0:00:38][%mdl 512]} 40. Kd2 {[%emt 0:01:25]} (40. cxd4 $2 {too greedy.} Rc2 41. Rf2 (41. d5 $2 Ke5 $19) 41... Ng2+ 42. Rxg2 Rxg2 $19) 40... Ke5 {[%emt 0:00:58]} 41. Rh1 {[%emt 0:01:58]} dxc3+ {[%emt 0:02:54]} 42. bxc3 {[%emt 0:00:02]} Rc6 {[%emt 0:01:01]} (42... Ng2 $142 43. Rb1 Rc7) 43. Rb1 {[%emt 0:00:35]} b6 {[%emt 0:02:19]} 44. Rb5+ {[%emt 0:00:30]} Rc5 {[%emt 0:00:01]} 45. Rxc5+ {[%emt 0:00:51]} bxc5 $15 {[%emt 0:00:01] KB-KN} 46. Bc8 {[%emt 0:00:35]} (46. a4 $1 $15) 46... Ng2 $1 $17 {[%emt 0:00:24] And now ...Kf4 would win.} 47. Bh3 {[%emt 0:00:09]} Nf4 {[%emt 0:01:12]} ({Black should play} 47... Nh4 $1 $17 48. Ke3 f5) 48. Bf1 {[%emt 0:00:08]} (48. Bc8 $11 {keeps the balance.}) 48... Ng6 {[%emt 0:00:36]} 49. Ke3 {[%emt 0:00:04]} Ne7 {[%emt 0:00:04]} 50. Bc4 {[%emt 0:01:21]} f6 {[%emt 0:00:33]} 51. Be2 {[%emt 0:00:44]} Nc8 {[%emt 0:00:14]} 52. Ba6 {[%emt 0:00:39]} Nd6 {[%emt 0:00:11]} 53. a4 $2 {[%emt 0:00:31][%mdl 8192] [#]} (53. Bd3 $17) 53... c4 $1 $19 {[%emt 0:08:40]} 54. Ke2 {[%emt 0:00:28]} Kf4 {[%emt 0:00:51]} 55. Kf2 {[%emt 0:00:23]} h5 {[%emt 0:01:11] Hoping for ...g4.} 56. h3 {[%emt 0:00:20]} g4 {[%emt 0:00:31]} 57. hxg4 {[%emt 0:00:07]} hxg4 {[%emt 0:00:03]} 58. fxg4 {[%emt 0:00:06]} Nxe4+ {[%emt 0:00:28]} 59. Ke1 {[%emt 0:00:31]} Nd6 {[%emt 0:02:15]} (59... Kxg4 $17 {( -> ...Nd6)} 60. Bxc4 Kf4) 60. Ke2 {[%emt 0:00:12]} Ke4 {[%emt 0:00:16] Black wants to play ...Kf4.} 61. a5 $1 {[%emt 0:00:38]} Kf4 {[%emt 0:00:18]} 62. Kf2 {[%emt 0:00:30]} Ne4+ {[%emt 0:02:33]} (62... Kxg4 $5 63. Ke3 $8 Kg5 $11) 63. Ke1 {[%emt 0:00:10]} (63. Ke2 $1 $11) 63... Kxg4 $17 {[%emt 0:00:28] aiming for ...Nd6.} 64. Bxc4 {[%emt 0:00:12] [#]} Kg3 {[%emt 0:00:19]} (64... Kf4 $1 $17 {[%cal Rf4e3] ...Ke3! is the strong threat.} 65. Ke2 Ke5) 65. Be6 {[%emt 0:01:43] The position is equal.} Nxc3 {[%emt 0:00:10]} 66. Kd2 {[%emt 0:00:20]} Ne4+ {[%emt 0:03:41]} 67. Ke3 {[%emt 0:00:07] Whites escaped into a draw.   Weighted Error Value: White=0.28 (precise) /Black=0.14 (very precise)} 1/2-1/2